[Event "Betsys MČR v online bleskovém šachu 2021"]
[Site "Chess.com"]
[Date "2021.04.17"]
[Round "4"]
[White "ffbp3q"]
[Black "vit_rosenbaum"]
[Result "0-1"]
[WhiteElo "2373"]
[BlackElo "2223"]
[TimeControl "180+1"]
[EndTime "9:38:18 PDT"]
[Termination "Uživatel vit_rosenbaum zvítězil na čas"]

1. d4 {[%clk 0:03:00.9]} 1... e6 {[%clk 0:02:59.7]} 2. c4 {[%clk 0:03:00.7]}
2... c5 {[%clk 0:02:59.8]} 3. d5 {[%clk 0:03:00]} 3... exd5 {[%clk 0:02:59.3]}
4. cxd5 {[%clk 0:03:00.1]} 4... d6 {[%clk 0:02:59.8]} 5. Nc3 {[%clk 0:02:59.5]}
5... Nf6 {[%clk 0:02:59.9]} 6. Nf3 {[%clk 0:02:59.7]} 6... g6 {[%clk 0:02:59.8]}
7. Nd2 {[%clk 0:02:59.1]} 7... Bg7 {[%clk 0:02:59.4]} 8. e4 {[%clk 0:02:59.2]}
8... O-O {[%clk 0:02:58.9]} 9. Be2 {[%clk 0:02:59.4]} 9... Re8 {[%clk
0:02:57.7]} 10. O-O {[%clk 0:02:58.3]} 10... Na6 {[%clk 0:02:54.3]} 11. f3
{[%clk 0:02:48.3]} 11... Nc7 {[%clk 0:02:50.7]} 12. a4 {[%clk 0:02:45.9]} 12...
Rb8 {[%clk 0:02:41.6]} 13. Nc4 {[%clk 0:02:44.2]} 13... a6 {[%clk 0:02:23.9]}
14. Bf4 {[%clk 0:02:34.4]} 14... Bf8 {[%clk 0:02:22]} 15. Qd2 {[%clk 0:01:59.2]}
15... b5 {[%clk 0:02:18]} 16. axb5 {[%clk 0:01:51.7]} 16... axb5 {[%clk
0:02:15]} 17. Na5 {[%clk 0:01:51.5]} 17... Bb7 {[%clk 0:02:11.6]} 18. Nxb5
{[%clk 0:01:45.4]} 18... Nxb5 {[%clk 0:02:04.5]} 19. Bxb5 {[%clk 0:01:45.3]}
19... Re7 {[%clk 0:02:01.2]} 20. Nc6 {[%clk 0:01:28.8]} 20... Bxc6 {[%clk
0:02:00.4]} 21. Bxc6 {[%clk 0:01:29]} 21... Bg7 {[%clk 0:01:34.1]} 22. Rfb1
{[%clk 0:01:27.4]} 22... Rc7 {[%clk 0:01:29.1]} 23. Ra6 {[%clk 0:01:23.8]} 23...
Nh5 {[%clk 0:01:19]} 24. Bg5 {[%clk 0:01:22.4]} 24... Bf6 {[%clk 0:01:15.6]} 25.
Be3 {[%clk 0:01:20.5]} 25... Bg7 {[%clk 0:00:58.7]} 26. b4 {[%clk 0:01:18.8]}
26... cxb4 {[%clk 0:00:46.3]} 27. Rxb4 {[%clk 0:01:18]} 27... Rxb4 {[%clk
0:00:41.2]} 28. Qxb4 {[%clk 0:01:15.7]} 28... Rc8 {[%clk 0:00:35.5]} 29. Ra7
{[%clk 0:00:51]} 29... Rb8 {[%clk 0:00:32.5]} 30. Qxb8 {[%clk 0:00:31.6]} 30...
Qxb8 {[%clk 0:00:31]} 31. Ra8 {[%clk 0:00:31.8]} 31... Qxa8 {[%clk 0:00:30.2]}
32. Bxa8 {[%clk 0:00:31.8]} 32... Be5 {[%clk 0:00:27.6]} 33. g3 {[%clk
0:00:30.9]} 33... f5 {[%clk 0:00:20.9]} 34. exf5 {[%clk 0:00:26.5]} 34... gxf5
{[%clk 0:00:20.5]} 35. Bb6 {[%clk 0:00:24.4]} 35... Nf6 {[%clk 0:00:19.2]} 36.
Kf2 {[%clk 0:00:21.8]} 36... Kf7 {[%clk 0:00:18.6]} 37. Ke3 {[%clk 0:00:21.3]}
37... Bb2 {[%clk 0:00:17.9]} 38. Bc7 {[%clk 0:00:18.9]} 38... Ke7 {[%clk
0:00:17.1]} 39. Kf4 {[%clk 0:00:17.4]} 39... Bc1+ {[%clk 0:00:16.8]} 40. Kxf5
{[%clk 0:00:17.2]} 40... Nd7 {[%clk 0:00:14.5]} 41. Kg4 {[%clk 0:00:13.6]} 41...
Ne5+ {[%clk 0:00:13.9]} 42. Kf5 {[%clk 0:00:12.7]} 42... Nxf3 {[%clk 0:00:13.9]}
43. h4 {[%clk 0:00:10.1]} 43... Bd2 {[%clk 0:00:12.1]} 44. Bb7 {[%clk
0:00:08.2]} 44... Be1 {[%clk 0:00:11.7]} 45. Kg4 {[%clk 0:00:06.9]} 45... Ne5+
{[%clk 0:00:11.5]} 46. Kh3 {[%clk 0:00:06.9]} 46... Nd3 {[%clk 0:00:11]} 47. Bb6
{[%clk 0:00:04.9]} 47... Nc5 {[%clk 0:00:08.9]} 48. Bc6 {[%clk 0:00:04.1]} 48...
Ne4 {[%clk 0:00:08.5]} 49. g4 {[%clk 0:00:03.2]} 49... Nf6 {[%clk 0:00:07.3]}
50. g5 {[%clk 0:00:02.5]} 50... Ne4 {[%clk 0:00:06.3]} 51. Kg4 {[%clk
0:00:02.7]} 51... Nf2+ {[%clk 0:00:02.9]} 52. Kf5 {[%clk 0:00:02]} 52... Nd3
{[%clk 0:00:02.5]} 53. h5 {[%clk 0:00:02]} 53... Nc5 {[%clk 0:00:02.1]} 54. Bxc5
{[%clk 0:00:01.4]} 54... dxc5 {[%clk 0:00:01.3]} 55. g6 {[%clk 0:00:01.6]} 55...
hxg6+ {[%clk 0:00:01.6]} 56. hxg6 {[%clk 0:00:01]} 56... Bc3 {[%clk 0:00:02]}
0-1

[Event "Betsys MČR v online bleskovém šachu 2021"]
[Site "Chess.com"]
[Date "2021.04.17"]
[Round "4"]
[White "iDarkTraveler"]
[Black "kominekmart"]
[Result "1-0"]
[WhiteElo "1971"]
[BlackElo "1574"]
[TimeControl "180+1"]
[EndTime "9:38:24 PDT"]
[Termination "Uživatel iDarkTraveler zvítězil matem"]

1. d4 {[%clk 0:03:00.9]} 1... d6 {[%clk 0:02:58.6]} 2. Nf3 {[%clk 0:02:57.8]}
2... g6 {[%clk 0:02:58.4]} 3. g3 {[%clk 0:02:53.3]} 3... Nf6 {[%clk 0:02:58]} 4.
Bg2 {[%clk 0:02:53.6]} 4... Bg7 {[%clk 0:02:58]} 5. O-O {[%clk 0:02:51.6]} 5...
O-O {[%clk 0:02:57.5]} 6. Re1 {[%clk 0:02:51]} 6... d5 {[%clk 0:02:51.2]} 7. Bf4
{[%clk 0:02:47.4]} 7... c6 {[%clk 0:02:39]} 8. Qc1 {[%clk 0:02:39.3]} 8... Bg4
{[%clk 0:02:37.5]} 9. Bh6 {[%clk 0:02:36.2]} 9... Nbd7 {[%clk 0:02:28.3]} 10.
Bxg7 {[%clk 0:02:32]} 10... Kxg7 {[%clk 0:02:27.9]} 11. e3 {[%clk 0:02:29.4]}
11... Ne4 {[%clk 0:02:25]} 12. Nbd2 {[%clk 0:02:26]} 12... Nxd2 {[%clk
0:02:22.5]} 13. Qxd2 {[%clk 0:02:23.6]} 13... Nb6 {[%clk 0:02:21.5]} 14. Ne5
{[%clk 0:02:20.9]} 14... Bf5 {[%clk 0:02:15.8]} 15. a4 {[%clk 0:02:15.4]} 15...
Be4 {[%clk 0:02:14]} 16. a5 {[%clk 0:02:12.7]} 16... Nd7 {[%clk 0:02:02.1]} 17.
Bxe4 {[%clk 0:01:58.6]} 17... dxe4 {[%clk 0:02:01.4]} 18. Qb4 {[%clk 0:01:57.4]}
18... Nxe5 {[%clk 0:01:57.8]} 19. dxe5 {[%clk 0:01:58.3]} 19... Qc7 {[%clk
0:01:45.2]} 20. Qxe4 {[%clk 0:01:57.2]} 20... Rad8 {[%clk 0:01:30.6]} 21. h4
{[%clk 0:01:50]} 21... Rd5 {[%clk 0:01:29.3]} 22. e6 {[%clk 0:01:26]} 22... f6
{[%clk 0:01:25]} 23. a6 {[%clk 0:01:21.4]} 23... b6 {[%clk 0:01:23.4]} 24. f4
{[%clk 0:01:06.5]} 24... f5 {[%clk 0:01:13]} 25. Qb4 {[%clk 0:01:02.4]} 25...
Qd6 {[%clk 0:01:05.1]} 26. Qc3+ {[%clk 0:00:59.9]} 26... Kg8 {[%clk 0:01:00.4]}
27. e4 {[%clk 0:00:37.1]} 27... Rd2 {[%clk 0:00:56.7]} 28. Qe3 {[%clk
0:00:29.3]} 28... Rd8 {[%clk 0:00:53.9]} 29. exf5 {[%clk 0:00:27.2]} 29... Qd5
{[%clk 0:00:44]} 30. Re2 {[%clk 0:00:26.8]} 30... Rxe2 {[%clk 0:00:42.9]} 31.
Qxe2 {[%clk 0:00:27.7]} 31... Qxf5 {[%clk 0:00:40.5]} 32. Kg2 {[%clk 0:00:27.6]}
32... Rd6 {[%clk 0:00:36.9]} 33. Re1 {[%clk 0:00:27.6]} 33... Qd5+ {[%clk
0:00:34.8]} 34. Qf3 {[%clk 0:00:25.2]} 34... Qd2+ {[%clk 0:00:32.9]} 35. Re2
{[%clk 0:00:25.7]} 35... Qd5 {[%clk 0:00:30.7]} 36. h5 {[%clk 0:00:23.6]} 36...
Kg7 {[%clk 0:00:25.4]} 37. hxg6 {[%clk 0:00:23]} 37... hxg6 {[%clk 0:00:23.5]}
38. g4 {[%clk 0:00:16.8]} 38... Qxf3+ {[%clk 0:00:20.4]} 39. Kxf3 {[%clk
0:00:17.7]} 39... Kf6 {[%clk 0:00:20.3]} 40. Rh2 {[%clk 0:00:08.8]} 40... Kxe6
{[%clk 0:00:18.5]} 41. Ke3 {[%clk 0:00:09.2]} 41... Rd5 {[%clk 0:00:17.4]} 42.
Rh6 {[%clk 0:00:08.9]} 42... Kf6 {[%clk 0:00:17]} 43. f5 {[%clk 0:00:05.3]}
43... Kg5 {[%clk 0:00:15.9]} 44. Rxg6+ {[%clk 0:00:05.6]} 44... Kh4 {[%clk
0:00:13.5]} 45. Ke4 {[%clk 0:00:04.7]} 45... Ra5 {[%clk 0:00:10.9]} 46. Kf4
{[%clk 0:00:04.7]} 46... Ra4+ {[%clk 0:00:10.4]} 47. Ke5 {[%clk 0:00:05]} 47...
Rxg4 {[%clk 0:00:09.5]} 48. Rh6+ {[%clk 0:00:04.4]} 48... Kg5 {[%clk 0:00:08.6]}
49. Rg6+ {[%clk 0:00:04.3]} 49... Kh4 {[%clk 0:00:08.5]} 50. Rxg4+ {[%clk
0:00:04.6]} 50... Kxg4 {[%clk 0:00:08.3]} 51. Ke6 {[%clk 0:00:05.5]} 51... Kf4
{[%clk 0:00:07.9]} 52. Kxe7 {[%clk 0:00:05.2]} 52... Kxf5 {[%clk 0:00:07.6]} 53.
Kd6 {[%clk 0:00:06.1]} 53... c5 {[%clk 0:00:06.8]} 54. Kc6 {[%clk 0:00:06.6]}
54... Ke5 {[%clk 0:00:06.2]} 55. Kb7 {[%clk 0:00:07.1]} 55... Ke4 {[%clk
0:00:05.4]} 56. Kxa7 {[%clk 0:00:07.3]} 56... Ke3 {[%clk 0:00:05.4]} 57. Kxb6
{[%clk 0:00:07.6]} 57... Kd2 {[%clk 0:00:06.3]} 58. Kxc5 {[%clk 0:00:07.9]}
58... Kxc2 {[%clk 0:00:07.2]} 59. b4 {[%clk 0:00:07.9]} 59... Kb2 {[%clk
0:00:08.1]} 60. b5 {[%clk 0:00:08.8]} 60... Kb3 {[%clk 0:00:08.8]} 61. b6 {[%clk
0:00:09.7]} 61... Ka4 {[%clk 0:00:09.3]} 62. b7 {[%clk 0:00:08.8]} 62... Ka5
{[%clk 0:00:10.2]} 63. b8=Q {[%clk 0:00:08.5]} 63... Kxa6 {[%clk 0:00:11.1]} 64.
Qb6# {[%clk 0:00:08.8]} 1-0

[Event "Betsys MČR v online bleskovém šachu 2021"]
[Site "Chess.com"]
[Date "2021.04.17"]
[Round "4"]
[White "jarosymon"]
[Black "sachistamartin"]
[Result "1-0"]
[WhiteElo "1784"]
[BlackElo "1447"]
[TimeControl "180+1"]
[EndTime "9:38:24 PDT"]
[Termination "Uživatel jarosymon zvítězil matem"]

1. e4 {[%clk 0:03:00.9]} 1... Nc6 {[%clk 0:02:58.2]} 2. c4 {[%clk 0:02:58.5]}
2... e5 {[%clk 0:02:57.3]} 3. Nf3 {[%clk 0:02:56.1]} 3... d6 {[%clk 0:02:54.9]}
4. d4 {[%clk 0:02:55.9]} 4... Bg4 {[%clk 0:02:47.4]} 5. d5 {[%clk 0:02:45.2]}
5... Nd4 {[%clk 0:02:42.5]} 6. Be3 {[%clk 0:02:43.4]} 6... Bxf3 {[%clk
0:02:41.7]} 7. gxf3 {[%clk 0:02:41.5]} 7... c5 {[%clk 0:02:30]} 8. dxc6 {[%clk
0:02:38.9]} 8... Nxc6 {[%clk 0:02:28.9]} 9. Nc3 {[%clk 0:02:37.6]} 9... Nf6
{[%clk 0:02:26.5]} 10. Bg2 {[%clk 0:02:30.5]} 10... Qa5 {[%clk 0:02:23.3]} 11.
O-O {[%clk 0:02:28.5]} 11... Be7 {[%clk 0:02:21.4]} 12. a3 {[%clk 0:02:24.9]}
12... O-O {[%clk 0:02:14.2]} 13. b4 {[%clk 0:02:24.4]} 13... Qc7 {[%clk
0:02:12.9]} 14. Rc1 {[%clk 0:02:16.5]} 14... Nd7 {[%clk 0:02:10.2]} 15. Nd5
{[%clk 0:02:12.7]} 15... Qd8 {[%clk 0:02:07.3]} 16. f4 {[%clk 0:01:58.8]} 16...
f5 {[%clk 0:02:04]} 17. exf5 {[%clk 0:01:51.3]} 17... Rxf5 {[%clk 0:01:57.9]}
18. Be4 {[%clk 0:01:49.8]} 18... Rf7 {[%clk 0:01:44.9]} 19. f5 {[%clk 0:01:36]}
19... Bg5 {[%clk 0:01:34.4]} 20. Qh5 {[%clk 0:01:27.6]} 20... Bxe3 {[%clk
0:01:22.6]} 21. fxe3 {[%clk 0:01:25.9]} 21... Nf6 {[%clk 0:01:19.9]} 22. Nxf6+
{[%clk 0:01:24.4]} 22... Qxf6 {[%clk 0:01:15.4]} 23. Bd5 {[%clk 0:01:22.8]}
23... Rf8 {[%clk 0:01:03.4]} 24. Bxf7+ {[%clk 0:01:21.2]} 24... Rxf7 {[%clk
0:01:01.2]} 25. b5 {[%clk 0:01:11.7]} 25... Ne7 {[%clk 0:01:00]} 26. e4 {[%clk
0:01:09.8]} 26... g6 {[%clk 0:00:59]} 27. fxg6 {[%clk 0:01:06.8]} 27... Qxg6+
{[%clk 0:00:51.6]} 28. Qxg6+ {[%clk 0:01:04.6]} 28... Nxg6 {[%clk 0:00:49.9]}
29. Rxf7 {[%clk 0:01:02.7]} 29... Kxf7 {[%clk 0:00:49.5]} 30. c5 {[%clk
0:00:58.5]} 30... Nf4 {[%clk 0:00:47]} 31. Rc2 {[%clk 0:00:41.3]} 31... dxc5
{[%clk 0:00:38.5]} 32. Rxc5 {[%clk 0:00:40.3]} 32... Ne6 {[%clk 0:00:32.1]} 33.
Rxe5 {[%clk 0:00:37.8]} 33... Kf6 {[%clk 0:00:29.4]} 34. Rh5 {[%clk 0:00:36.2]}
34... Kg6 {[%clk 0:00:26]} 35. Rh3 {[%clk 0:00:33.7]} 35... Nf4 {[%clk
0:00:24.3]} 36. Rf3 {[%clk 0:00:32]} 36... Kg5 {[%clk 0:00:23]} 37. Rg3+ {[%clk
0:00:23.5]} 37... Kh4 {[%clk 0:00:20.6]} 38. Rg7 {[%clk 0:00:22.9]} 38... Ne2+
{[%clk 0:00:19.8]} 39. Kf2 {[%clk 0:00:21.9]} 39... Nc3 {[%clk 0:00:17.9]} 40.
Rxh7+ {[%clk 0:00:21.5]} 40... Kg5 {[%clk 0:00:17.9]} 41. Rxb7 {[%clk
0:00:20.9]} 41... Nxe4+ {[%clk 0:00:17.5]} 42. Ke3 {[%clk 0:00:18.1]} 42... Nd6
{[%clk 0:00:15.7]} 43. Rxa7 {[%clk 0:00:16.2]} 43... Nc4+ {[%clk 0:00:15.3]} 44.
Kd4 {[%clk 0:00:14.9]} 44... Nb6 {[%clk 0:00:14.8]} 45. Ra6 {[%clk 0:00:14.2]}
45... Nc8 {[%clk 0:00:14.3]} 46. b6 {[%clk 0:00:14.1]} 46... Nd6 {[%clk
0:00:13.9]} 47. b7 {[%clk 0:00:13.6]} 47... Nxb7 {[%clk 0:00:13.6]} 48. Kd5
{[%clk 0:00:13.6]} 48... Nd8 {[%clk 0:00:12.7]} 49. Kd6 {[%clk 0:00:13]} 49...
Nb7+ {[%clk 0:00:11.8]} 50. Kc6 {[%clk 0:00:11.8]} 50... Nd8+ {[%clk 0:00:11.7]}
51. Kd7 {[%clk 0:00:11.6]} 51... Nf7 {[%clk 0:00:11.3]} 52. Re6 {[%clk
0:00:10.3]} 52... Nh6 {[%clk 0:00:10.2]} 53. a4 {[%clk 0:00:07.4]} 53... Nf5
{[%clk 0:00:09.7]} 54. a5 {[%clk 0:00:07]} 54... Ng7 {[%clk 0:00:09.8]} 55. a6
{[%clk 0:00:05.9]} 55... Nxe6 {[%clk 0:00:09.5]} 56. Kxe6 {[%clk 0:00:05.5]}
56... Kh4 {[%clk 0:00:10.4]} 57. a7 {[%clk 0:00:05.7]} 57... Kh3 {[%clk
0:00:11.3]} 58. a8=Q {[%clk 0:00:05.7]} 58... Kxh2 {[%clk 0:00:12.2]} 59. Qg8
{[%clk 0:00:05.6]} 59... Kh3 {[%clk 0:00:11.4]} 60. Kf5 {[%clk 0:00:05.6]} 60...
Kh4 {[%clk 0:00:11.3]} 61. Qg4# {[%clk 0:00:05.3]} 1-0

[Event "Betsys MČR v online bleskovém šachu 2021"]
[Site "Chess.com"]
[Date "2021.04.17"]
[Round "4"]
[White "zdenav"]
[Black "AdeeJa"]
[Result "0-1"]
[WhiteElo "1816"]
[BlackElo "1632"]
[TimeControl "180+1"]
[EndTime "9:38:34 PDT"]
[Termination "Uživatel AdeeJa zvítězil na čas"]

1. e4 {[%clk 0:03:00.9]} 1... c5 {[%clk 0:02:58.9]} 2. Nf3 {[%clk 0:03:00.9]}
2... Nc6 {[%clk 0:02:58.8]} 3. Bc4 {[%clk 0:03:00.9]} 3... e6 {[%clk 0:02:54.5]}
4. O-O {[%clk 0:03:00.7]} 4... Nge7 {[%clk 0:02:54.3]} 5. Re1 {[%clk 0:03:00.2]}
5... g6 {[%clk 0:02:53.8]} 6. c3 {[%clk 0:02:57.8]} 6... Bg7 {[%clk 0:02:54.7]}
7. e5 {[%clk 0:02:57.3]} 7... d5 {[%clk 0:02:53.7]} 8. Bb3 {[%clk 0:02:56.4]}
8... c4 {[%clk 0:02:53.2]} 9. Ba4 {[%clk 0:02:55.3]} 9... a6 {[%clk 0:02:52.4]}
10. d4 {[%clk 0:02:54.8]} 10... b5 {[%clk 0:02:51.9]} 11. Bc2 {[%clk 0:02:53.9]}
11... a5 {[%clk 0:02:47.9]} 12. Nbd2 {[%clk 0:02:53.4]} 12... b4 {[%clk
0:02:47.3]} 13. Ba4 {[%clk 0:02:52]} 13... O-O {[%clk 0:02:39.9]} 14. Nf1 {[%clk
0:02:51.3]} 14... Rb8 {[%clk 0:02:28.7]} 15. Bg5 {[%clk 0:02:48.3]} 15... Qb6
{[%clk 0:02:26.2]} 16. Qd2 {[%clk 0:02:36]} 16... Ba6 {[%clk 0:02:17.1]} 17. Ng3
{[%clk 0:02:28.6]} 17... bxc3 {[%clk 0:02:16.5]} 18. bxc3 {[%clk 0:02:28.4]}
18... Qb2 {[%clk 0:02:16.2]} 19. Qe3 {[%clk 0:02:27]} 19... Qa3 {[%clk
0:02:04.9]} 20. Bxc6 {[%clk 0:02:24.9]} 20... Nxc6 {[%clk 0:02:03.8]} 21. Re2
{[%clk 0:02:19.5]} 21... Rb2 {[%clk 0:01:55.7]} 22. Rxb2 {[%clk 0:02:11]} 22...
Qxb2 {[%clk 0:01:55.8]} 23. Qc1 {[%clk 0:02:10.6]} 23... Rb8 {[%clk 0:01:54.7]}
24. h3 {[%clk 0:02:09.7]} 24... Qxc1+ {[%clk 0:01:46.2]} 25. Bxc1 {[%clk
0:02:08.5]} 25... Bb5 {[%clk 0:01:42.6]} 26. Nd2 {[%clk 0:01:59.2]} 26... Ba4
{[%clk 0:01:42.3]} 27. f4 {[%clk 0:01:55.9]} 27... Bh6 {[%clk 0:01:41]} 28. Ne2
{[%clk 0:01:54.8]} 28... Bd1 {[%clk 0:01:27]} 29. Kf2 {[%clk 0:01:46]} 29...
Bxe2 {[%clk 0:01:25.4]} 30. Kxe2 {[%clk 0:01:45.8]} 30... Bxf4 {[%clk
0:01:25.6]} 31. Kf3 {[%clk 0:01:44.4]} 31... Bh6 {[%clk 0:01:23.2]} 32. Ke2
{[%clk 0:01:43.9]} 32... a4 {[%clk 0:01:13.6]} 33. Kd1 {[%clk 0:01:43.6]} 33...
Na7 {[%clk 0:01:11.2]} 34. Kc2 {[%clk 0:01:41.9]} 34... Nb5 {[%clk 0:01:06.6]}
35. Rb1 {[%clk 0:01:36.7]} 35... Bf8 {[%clk 0:01:06]} 36. Nf1 {[%clk 0:01:25]}
36... h6 {[%clk 0:00:54.6]} 37. Ne3 {[%clk 0:01:22.6]} 37... Kg7 {[%clk
0:00:53]} 38. Nd1 {[%clk 0:01:20.7]} 38... f6 {[%clk 0:00:49.7]} 39. exf6+
{[%clk 0:01:16.1]} 39... Kxf6 {[%clk 0:00:49.5]} 40. Kd2 {[%clk 0:01:08.8]}
40... e5 {[%clk 0:00:46]} 41. dxe5+ {[%clk 0:01:06.3]} 41... Kxe5 {[%clk
0:00:46.4]} 42. Ke3 {[%clk 0:01:05.8]} 42... Bc5+ {[%clk 0:00:42.8]} 43. Kf3
{[%clk 0:01:04.8]} 43... g5 {[%clk 0:00:40.3]} 44. Kg4 {[%clk 0:01:00.6]} 44...
Bd6 {[%clk 0:00:30]} 45. Kh5 {[%clk 0:00:59]} 45... Bf8 {[%clk 0:00:28.6]} 46.
Kg6 {[%clk 0:00:55.6]} 46... Rb6+ {[%clk 0:00:26.5]} 47. Kh5 {[%clk 0:00:53]}
47... Ke4 {[%clk 0:00:25.1]} 48. Be3 {[%clk 0:00:50.9]} 48... Rb8 {[%clk
0:00:23.3]} 49. Bg1 {[%clk 0:00:40.9]} 49... Kd3 {[%clk 0:00:22.7]} 50. Rb2
{[%clk 0:00:38.7]} 50... Ba3 {[%clk 0:00:17]} 51. Rf2 {[%clk 0:00:28.9]} 51...
Re8 {[%clk 0:00:10.2]} 52. Rf3+ {[%clk 0:00:26.2]} 52... Kc2 {[%clk 0:00:09.3]}
53. Ne3+ {[%clk 0:00:25.6]} 53... Kd2 {[%clk 0:00:04.2]} 54. Nxd5 {[%clk
0:00:24.1]} 54... Bb2 {[%clk 0:00:03.5]} 55. Be3+ {[%clk 0:00:18.3]} 55... Ke2
{[%clk 0:00:02.9]} 56. Rf2+ {[%clk 0:00:15.2]} 56... Kd3 {[%clk 0:00:02.8]} 57.
Bc5 {[%clk 0:00:08.8]} 57... Na3 {[%clk 0:00:01.4]} 58. Bb4 {[%clk 0:00:02.5]}
58... Ke4 {[%clk 0:00:01.5]} 59. Nf6+ {[%clk 0:00:01.7]} 59... Ke5 {[%clk
0:00:01.3]} 60. Nxe8 {[%clk 0:00:01.7]} 60... Ke6 {[%clk 0:00:01.7]} 0-1

[Event "Betsys MČR v online bleskovém šachu 2021"]
[Site "Chess.com"]
[Date "2021.04.17"]
[Round "4"]
[White "TCTCGTGCTATG"]
[Black "xPsylocke"]
[Result "1-0"]
[WhiteElo "1925"]
[BlackElo "2178"]
[TimeControl "180+1"]
[EndTime "9:38:35 PDT"]
[Termination "Uživatel TCTCGTGCTATG zvítězil po vzdání soupeře"]

1. e4 {[%clk 0:03:00.9]} 1... e5 {[%clk 0:02:58]} 2. Nf3 {[%clk 0:03:00.7]} 2...
Nc6 {[%clk 0:02:56.4]} 3. Bc4 {[%clk 0:03:00.3]} 3... Bc5 {[%clk 0:02:55.7]} 4.
c3 {[%clk 0:02:58]} 4... Nf6 {[%clk 0:02:55.2]} 5. d4 {[%clk 0:02:55]} 5... exd4
{[%clk 0:02:54.9]} 6. cxd4 {[%clk 0:02:54.8]} 6... Bb4+ {[%clk 0:02:53.2]} 7.
Nc3 {[%clk 0:02:53.6]} 7... d5 {[%clk 0:02:51.9]} 8. exd5 {[%clk 0:02:47.5]}
8... Nxd5 {[%clk 0:02:51.7]} 9. O-O {[%clk 0:02:44.9]} 9... Bxc3 {[%clk
0:02:51.2]} 10. bxc3 {[%clk 0:02:43.8]} 10... O-O {[%clk 0:02:50.8]} 11. Bd2
{[%clk 0:02:29.4]} 11... h6 {[%clk 0:02:50.2]} 12. Qc2 {[%clk 0:02:26.2]} 12...
Bg4 {[%clk 0:02:44.4]} 13. Qd3 {[%clk 0:02:17.2]} 13... a6 {[%clk 0:02:28.5]}
14. Rfe1 {[%clk 0:02:12.9]} 14... Na5 {[%clk 0:02:21.1]} 15. Bxd5 {[%clk
0:02:06.3]} 15... Qxd5 {[%clk 0:02:20.5]} 16. Ne5 {[%clk 0:02:04.9]} 16... Be6
{[%clk 0:02:12.3]} 17. Qg3 {[%clk 0:01:58.9]} 17... Kh8 {[%clk 0:02:06.9]} 18.
Qh4 {[%clk 0:01:48.5]} 18... Kh7 {[%clk 0:01:43.6]} 19. Bf4 {[%clk 0:01:33.4]}
19... Nc4 {[%clk 0:01:33]} 20. Ng4 {[%clk 0:01:15.6]} 20... Bxg4 {[%clk
0:01:11.3]} 21. Qxg4 {[%clk 0:01:16.5]} 21... c5 {[%clk 0:01:11.7]} 22. dxc5
{[%clk 0:01:09.5]} 22... Qxc5 {[%clk 0:01:12.6]} 23. Rad1 {[%clk 0:01:05.6]}
23... Rad8 {[%clk 0:01:07.9]} 24. h3 {[%clk 0:00:51.6]} 24... b5 {[%clk
0:00:59.7]} 25. Bc1 {[%clk 0:00:38.9]} 25... Rfe8 {[%clk 0:00:56.5]} 26. Bf4
{[%clk 0:00:36.5]} 26... Rxe1+ {[%clk 0:00:36.3]} 27. Rxe1 {[%clk 0:00:36]}
27... Qc6 {[%clk 0:00:36.8]} 28. Re7 {[%clk 0:00:28.7]} 28... Qf6 {[%clk
0:00:30.4]} 29. Ra7 {[%clk 0:00:25.3]} 29... Rd3 {[%clk 0:00:30.4]} 30. Bg3
{[%clk 0:00:22.5]} 30... Rxc3 {[%clk 0:00:20.4]} 31. Qe4+ {[%clk 0:00:21.2]}
31... Qg6 {[%clk 0:00:20.8]} 32. Qf4 {[%clk 0:00:19.6]} 32... Ra3 {[%clk
0:00:19.2]} 33. Rxf7 {[%clk 0:00:18.8]} 33... Rxa2 {[%clk 0:00:19.3]} 34. Ra7
{[%clk 0:00:18.1]} 34... Ra1+ {[%clk 0:00:19.2]} 35. Kh2 {[%clk 0:00:17.6]}
35... Ra3 {[%clk 0:00:19.3]} 36. Qc7 {[%clk 0:00:17.4]} 36... Rd3 {[%clk
0:00:18.8]} 37. Qb7 {[%clk 0:00:15]} 37... Rd2 {[%clk 0:00:16.9]} 38. Rxa6
{[%clk 0:00:14.6]} 38... Qd3 {[%clk 0:00:16.8]} 39. Ra7 {[%clk 0:00:14.2]} 39...
Qg6 {[%clk 0:00:15.3]} 40. Ra6 {[%clk 0:00:13.9]} 40... Qd3 {[%clk 0:00:14.9]}
41. Ra7 {[%clk 0:00:14]} 41... Qc3 {[%clk 0:00:14.6]} 42. Qf7 {[%clk 0:00:13.1]}
42... Rd5 {[%clk 0:00:10.6]} 43. Qxd5 {[%clk 0:00:12]} 43... b4 {[%clk 0:00:09]}
44. Qe4+ {[%clk 0:00:12]} 44... Kg8 {[%clk 0:00:08.8]} 45. Ra8+ {[%clk
0:00:11.9]} 45... Kf7 {[%clk 0:00:09.3]} 46. Qe8+ {[%clk 0:00:10.3]} 46... Kf6
{[%clk 0:00:09.6]} 47. Ra6+ {[%clk 0:00:10]} 47... Kf5 {[%clk 0:00:08.5]} 48.
Qf8+ {[%clk 0:00:09.3]} 48... Ke4 {[%clk 0:00:08.8]} 49. Qf4+ {[%clk 0:00:09.1]}
49... Kd3 {[%clk 0:00:09.3]} 50. Qf3+ {[%clk 0:00:08.5]} 50... Kc2 {[%clk
0:00:09.8]} 51. Ra2+ {[%clk 0:00:06.5]} 51... Kb3 {[%clk 0:00:09.5]} 52. Qxc3+
{[%clk 0:00:06.5]} 52... bxc3 {[%clk 0:00:09]} 53. Ra8 {[%clk 0:00:06.6]} 53...
c2 {[%clk 0:00:09.2]} 54. Bf4 {[%clk 0:00:07.1]} 54... g5 {[%clk 0:00:08.7]} 55.
Rb8+ {[%clk 0:00:07.2]} 55... Kc3 {[%clk 0:00:08.9]} 56. Bc1 {[%clk 0:00:06.8]}
56... Nd2 {[%clk 0:00:09.3]} 57. Bxd2+ {[%clk 0:00:05.5]} 57... Kxd2 {[%clk
0:00:09.6]} 58. Rd8+ {[%clk 0:00:05.4]} 58... Ke1 {[%clk 0:00:09.1]} 59. Rc8
{[%clk 0:00:05.5]} 59... Kd1 {[%clk 0:00:10]} 60. Kg3 {[%clk 0:00:04.9]} 60...
c1=Q {[%clk 0:00:10.9]} 61. Rxc1+ {[%clk 0:00:03.8]} 61... Kxc1 {[%clk
0:00:11.8]} 62. f4 {[%clk 0:00:04.2]} 62... Kd2 {[%clk 0:00:12.7]} 63. Kg4
{[%clk 0:00:04.4]} 63... gxf4 {[%clk 0:00:12.3]} 64. Kxf4 {[%clk 0:00:04.3]}
64... Kd3 {[%clk 0:00:13.2]} 65. Kg4 {[%clk 0:00:05.2]} 65... Ke3 {[%clk
0:00:14.1]} 66. h4 {[%clk 0:00:06.1]} 66... Kf2 {[%clk 0:00:15]} 67. Kf5 {[%clk
0:00:06.8]} 67... Kxg2 {[%clk 0:00:15.4]} 68. Kg6 {[%clk 0:00:07.7]} 68... Kh3
{[%clk 0:00:16]} 69. h5 {[%clk 0:00:08.1]} 69... Kg4 {[%clk 0:00:16.3]} 70. Kxh6
{[%clk 0:00:09]} 70... Kf5 {[%clk 0:00:17.2]} 71. Kg7 {[%clk 0:00:08.8]} 71...
Ke6 {[%clk 0:00:17.7]} 72. h6 {[%clk 0:00:09.7]} 72... Ke7 {[%clk 0:00:18.6]}
73. h7 {[%clk 0:00:10.6]} 73... Kd6 {[%clk 0:00:19.5]} 74. h8=Q {[%clk
0:00:11.1]} 74... Ke5 {[%clk 0:00:20.4]} 1-0